[Event "*** Titled Tuesday Blitz"]
[Site "Chess.com"]
[Date "2020.04.14"]
[Round "5"]
[White "Eltaj_Safarli"]
[Black "stanyga"]
[Result "1-0"]
[WhiteElo "3056"]
[BlackElo "2670"]
[TimeControl "180+1"]
[EndTime "10:51:01 PDT"]
[Termination "Eltaj_Safarli won by checkmate"]

1. e4 {[%clk 0:03:00.9]} 1... g6 {[%clk 0:03:00.2]} 2. d4 {[%clk 0:03:00]} 2...
Bg7 {[%clk 0:03:00.8]} 3. Nc3 {[%clk 0:03:00.1]} 3... c6 {[%clk 0:02:59]} 4. Nf3
{[%clk 0:02:59.6]} 4... d6 {[%clk 0:02:58.4]} 5. Be3 {[%clk 0:02:57.2]} 5... Nd7
{[%clk 0:02:56.7]} 6. Qd2 {[%clk 0:02:54.8]} 6... b5 {[%clk 0:02:55.8]} 7. Bd3
{[%clk 0:02:50.8]} 7... Nb6 {[%clk 0:02:53.8]} 8. h3 {[%clk 0:02:43.2]} 8... Nf6
{[%clk 0:02:47.5]} 9. O-O {[%clk 0:02:42.4]} 9... O-O {[%clk 0:02:47]} 10. Bh6
{[%clk 0:02:42.4]} 10... a5 {[%clk 0:02:41.9]} 11. Rfe1 {[%clk 0:02:30]} 11...
b4 {[%clk 0:02:40.9]} 12. Ne2 {[%clk 0:02:29.7]} 12... c5 {[%clk 0:02:39.4]} 13.
dxc5 {[%clk 0:02:12.6]} 13... dxc5 {[%clk 0:02:38.5]} 14. e5 {[%clk 0:02:13.1]}
14... Nfd5 {[%clk 0:02:30.6]} 15. Ng3 {[%clk 0:02:13]} 15... c4 {[%clk
0:02:25.9]} 16. Be4 {[%clk 0:02:08.7]} 16... c3 {[%clk 0:02:11.7]} 17. bxc3
{[%clk 0:02:05.9]} 17... bxc3 {[%clk 0:02:11.9]} 18. Qc1 {[%clk 0:02:03.7]}
18... f5 {[%clk 0:01:49]} 19. exf6 {[%clk 0:01:58.8]} 19... exf6 {[%clk
0:01:49]} 20. Rd1 {[%clk 0:01:51.1]} 20... Be6 {[%clk 0:01:43.5]} 21. Nd4 {[%clk
0:01:42.3]} 21... Bf7 {[%clk 0:01:42]} 22. Ndf5 {[%clk 0:01:33.5]} 22... gxf5
{[%clk 0:01:14]} 23. Nxf5 {[%clk 0:01:12.4]} 23... Bh8 {[%clk 0:01:06]} 24. Bxf8
{[%clk 0:01:09]} 24... Qxf8 {[%clk 0:01:05.4]} 25. Nh6+ {[%clk 0:00:59.4]} 25...
Kg7 {[%clk 0:01:05.6]} 26. Nf5+ {[%clk 0:00:54.8]} 26... Kg8 {[%clk 0:01:05.3]}
27. Nh6+ {[%clk 0:00:50.5]} 27... Kg7 {[%clk 0:01:05.4]} 28. Rd3 {[%clk
0:00:50.4]} 28... Bg6 {[%clk 0:00:58.7]} 29. Bxd5 {[%clk 0:00:34.5]} 29... Bxd3
{[%clk 0:00:58]} 30. Bxa8 {[%clk 0:00:32.8]} 30... Bg6 {[%clk 0:00:48.5]} 31.
Rb1 {[%clk 0:00:19.5]} 31... Qc5 {[%clk 0:00:34.5]} 32. Bf3 {[%clk 0:00:19.3]}
32... f5 {[%clk 0:00:29.6]} 33. Qg5 {[%clk 0:00:13.7]} 33... Qc7 {[%clk
0:00:15.2]} 34. Rxb6 {[%clk 0:00:09.2]} 34... Qxb6 {[%clk 0:00:14.2]} 35. Nxf5+
{[%clk 0:00:09.4]} 35... Kg8 {[%clk 0:00:13.3]} 36. Bd5+ {[%clk 0:00:08.1]}
36... Kf8 {[%clk 0:00:12.5]} 37. Qe7# {[%clk 0:00:08.2]} 1-0

[Event "*** Titled Tuesday Blitz"]
[Site "Chess.com"]
[Date "2020.04.14"]
[Round "5"]
[White "AlexOstrovskiy"]
[Black "Shield12"]
[Result "1-0"]
[WhiteElo "2656"]
[BlackElo "2860"]
[TimeControl "180+1"]
[EndTime "10:51:01 PDT"]
[Termination "AlexOstrovskiy won by checkmate"]

1. d4 {[%clk 0:02:57.8]} 1... Nf6 {[%clk 0:02:59]} 2. Bg5 {[%clk 0:02:57.2]}
2... c5 {[%clk 0:02:58.3]} 3. d5 {[%clk 0:02:56.8]} 3... Ne4 {[%clk 0:02:57.5]}
4. h4 {[%clk 0:02:56.9]} 4... Qb6 {[%clk 0:02:56]} 5. Nd2 {[%clk 0:02:56.3]}
5... Nxd2 {[%clk 0:02:54.1]} 6. Bxd2 {[%clk 0:02:55.8]} 6... e6 {[%clk
0:02:53.6]} 7. e4 {[%clk 0:02:49.8]} 7... d6 {[%clk 0:02:47.9]} 8. Bc3 {[%clk
0:02:39.6]} 8... e5 {[%clk 0:02:44.1]} 9. a4 {[%clk 0:02:39.4]} 9... Be7 {[%clk
0:02:40.7]} 10. h5 {[%clk 0:02:36.5]} 10... h6 {[%clk 0:02:39.4]} 11. f4 {[%clk
0:02:14.5]} 11... Nd7 {[%clk 0:02:32.5]} 12. Nf3 {[%clk 0:02:04.6]} 12... O-O
{[%clk 0:02:32.2]} 13. fxe5 {[%clk 0:01:56.2]} 13... Nxe5 {[%clk 0:02:31.7]} 14.
Nxe5 {[%clk 0:01:56.1]} 14... dxe5 {[%clk 0:02:32.2]} 15. a5 {[%clk 0:01:51.2]}
15... Qd6 {[%clk 0:02:22.4]} 16. Bd3 {[%clk 0:01:42]} 16... f5 {[%clk
0:02:19.3]} 17. exf5 {[%clk 0:01:39.2]} 17... Bxf5 {[%clk 0:02:19]} 18. O-O
{[%clk 0:01:39.7]} 18... e4 {[%clk 0:02:11.9]} 19. Rxf5 {[%clk 0:01:27.4]} 19...
Rxf5 {[%clk 0:02:09.2]} 20. Qg4 {[%clk 0:01:27.7]} 20... Rg5 {[%clk 0:01:27.1]}
21. Qxe4 {[%clk 0:01:26.2]} 21... Bf6 {[%clk 0:01:19.4]} 22. Qh7+ {[%clk
0:01:12.9]} 22... Kf7 {[%clk 0:01:13.7]} 23. Rf1 {[%clk 0:01:13.3]} 23... Re5
{[%clk 0:00:57.3]} 24. Bxe5 {[%clk 0:01:05]} 24... Qxe5 {[%clk 0:00:57.2]} 25.
c3 {[%clk 0:01:04.8]} 25... Qxh5 {[%clk 0:00:50.6]} 26. Qe4 {[%clk 0:00:56]}
26... Re8 {[%clk 0:00:48.4]} 27. Qc4 {[%clk 0:00:56.2]} 27... Qe5 {[%clk
0:00:43.7]} 28. d6+ {[%clk 0:00:45.6]} 28... Kf8 {[%clk 0:00:41.6]} 29. Bg6
{[%clk 0:00:45.9]} 29... Qe6 {[%clk 0:00:37.1]} 30. Qxc5 {[%clk 0:00:38]} 30...
Rd8 {[%clk 0:00:37.4]} 31. Rd1 {[%clk 0:00:32]} 31... Bg5 {[%clk 0:00:31.6]} 32.
d7+ {[%clk 0:00:26.2]} 32... Kg8 {[%clk 0:00:30]} 33. Qd5 {[%clk 0:00:24.1]}
33... Qxd5 {[%clk 0:00:24.2]} 34. Rxd5 {[%clk 0:00:25]} 34... Kf8 {[%clk
0:00:24.5]} 35. Kf2 {[%clk 0:00:16.6]} 35... Ke7 {[%clk 0:00:24.3]} 36. Be8
{[%clk 0:00:16]} 36... Ke6 {[%clk 0:00:23.1]} 37. Rb5 {[%clk 0:00:13.6]} 37...
Rb8 {[%clk 0:00:23.1]} 38. Kf3 {[%clk 0:00:09.7]} 38... Kd6 {[%clk 0:00:22.7]}
39. Ke4 {[%clk 0:00:07.7]} 39... Bf6 {[%clk 0:00:21.9]} 40. c4 {[%clk
0:00:05.6]} 40... Kc6 {[%clk 0:00:20.5]} 41. d8=Q# {[%clk 0:00:05.3]} 1-0

[Event "*** Titled Tuesday Blitz"]
[Site "Chess.com"]
[Date "2020.04.14"]
[Round "5"]
[White "ADODOVE"]
[Black "DonPreuss"]
[Result "0-1"]
[WhiteElo "1786"]
[BlackElo "2173"]
[TimeControl "180+1"]
[EndTime "10:51:01 PDT"]
[Termination "DonPreuss won on time"]

1. e4 {[%clk 0:03:00.9]} 1... e5 {[%clk 0:02:59.3]} 2. Nf3 {[%clk 0:02:59.5]}
2... d5 {[%clk 0:02:59.4]} 3. exd5 {[%clk 0:02:51.9]} 3... e4 {[%clk 0:02:59.5]}
4. Qe2 {[%clk 0:02:48.6]} 4... Nf6 {[%clk 0:02:59.1]} 5. d3 {[%clk 0:02:48.5]}
5... Qxd5 {[%clk 0:02:59]} 6. Bg5 {[%clk 0:02:31.4]} 6... Bb4+ {[%clk 0:02:47]}
7. c3 {[%clk 0:02:25.9]} 7... O-O {[%clk 0:02:38.7]} 8. dxe4 {[%clk 0:01:51.5]}
8... Nxe4 {[%clk 0:02:36.6]} 9. Be3 {[%clk 0:01:47.2]} 9... Bc5 {[%clk
0:02:17.4]} 10. Nbd2 {[%clk 0:01:34]} 10... Nxd2 {[%clk 0:02:12.8]} 11. Qxd2
{[%clk 0:01:20.3]} 11... Qxd2+ {[%clk 0:02:08.9]} 12. Kxd2 {[%clk 0:01:13.5]}
12... Bxe3+ {[%clk 0:02:08.1]} 13. Kxe3 {[%clk 0:01:10.1]} 13... Nc6 {[%clk
0:02:05.9]} 14. Bd3 {[%clk 0:00:47.7]} 14... Re8+ {[%clk 0:02:03.6]} 15. Kd2
{[%clk 0:00:45.8]} 15... Bg4 {[%clk 0:01:59.6]} 16. Rae1 {[%clk 0:00:27.9]}
16... Rxe1 {[%clk 0:01:16.1]} 17. Rxe1 {[%clk 0:00:26.7]} 17... Rd8 {[%clk
0:01:09.2]} 18. Kc2 {[%clk 0:00:23.1]} 18... Bxf3 {[%clk 0:01:04.3]} 19. gxf3
{[%clk 0:00:22.4]} 19... Kf8 {[%clk 0:01:03.7]} 20. Be4 {[%clk 0:00:20.4]} 20...
Rd6 {[%clk 0:01:02.9]} 21. Rd1 {[%clk 0:00:18.1]} 21... Rxd1 {[%clk 0:00:58.5]}
22. Kxd1 {[%clk 0:00:17.2]} 22... Nd8 {[%clk 0:00:59.1]} 23. a4 {[%clk
0:00:15.8]} 23... b6 {[%clk 0:00:54.7]} 24. b4 {[%clk 0:00:13.6]} 24... Ke7
{[%clk 0:00:53.5]} 25. Kc2 {[%clk 0:00:13.1]} 25... Ne6 {[%clk 0:00:45]} 26. Kb3
{[%clk 0:00:09.4]} 26... h6 {[%clk 0:00:30.6]} 27. Kc4 {[%clk 0:00:08.4]} 27...
a6 {[%clk 0:00:19.6]} 28. a5 {[%clk 0:00:05.8]} 28... b5+ {[%clk 0:00:11.7]} 29.
Kd5 {[%clk 0:00:05.6]} 29... Kd7 {[%clk 0:00:12.2]} 30. Bf5 {[%clk 0:00:04.2]}
30... c6+ {[%clk 0:00:12]} 31. Ke5 {[%clk 0:00:03.1]} 31... f6+ {[%clk
0:00:11.6]} 32. Ke4 {[%clk 0:00:01.9]} 32... Kd6 {[%clk 0:00:11.8]} 33. Bxe6
{[%clk 0:00:01.1]} 33... Kxe6 {[%clk 0:00:11.8]} 34. f4 {[%clk 0:00:01.3]} 34...
g6 {[%clk 0:00:10.9]} 0-1

[Event "*** Titled Tuesday Blitz"]
[Site "Chess.com"]
[Date "2020.04.14"]
[Round "5"]
[White "Bigfish1995"]
[Black "Alexander_Zubov"]
[Result "1-0"]
[WhiteElo "3103"]
[BlackElo "2877"]
[TimeControl "180+1"]
[EndTime "10:51:02 PDT"]
[Termination "Bigfish1995 won by resignation"]

1. d4 {[%clk 0:03:00.9]} 1... Nf6 {[%clk 0:02:59.4]} 2. c4 {[%clk 0:03:01.2]}
2... g6 {[%clk 0:02:58.2]} 3. Nc3 {[%clk 0:02:59.8]} 3... d5 {[%clk 0:02:58.2]}
4. Nf3 {[%clk 0:02:54.7]} 4... Bg7 {[%clk 0:02:57.4]} 5. h4 {[%clk 0:02:55]}
5... c6 {[%clk 0:02:56.2]} 6. cxd5 {[%clk 0:02:54.2]} 6... cxd5 {[%clk
0:02:56.1]} 7. Bf4 {[%clk 0:02:54.2]} 7... Nc6 {[%clk 0:02:54.6]} 8. e3 {[%clk
0:02:54.4]} 8... O-O {[%clk 0:02:54.6]} 9. Qb3 {[%clk 0:02:52.4]} 9... Na5
{[%clk 0:02:50.8]} 10. Qa3 {[%clk 0:02:50.3]} 10... Nc6 {[%clk 0:02:50.6]} 11.
Be2 {[%clk 0:02:46.9]} 11... Bg4 {[%clk 0:02:48.9]} 12. O-O {[%clk 0:02:41.6]}
12... Re8 {[%clk 0:02:38.3]} 13. Rfd1 {[%clk 0:02:18.8]} 13... e6 {[%clk
0:02:30.4]} 14. Rac1 {[%clk 0:02:04.9]} 14... Bf8 {[%clk 0:02:27.8]} 15. Qb3
{[%clk 0:02:05]} 15... Na5 {[%clk 0:02:24.6]} 16. Qa4 {[%clk 0:02:03.2]} 16...
a6 {[%clk 0:02:21.1]} 17. Bc7 {[%clk 0:01:55.5]} 17... Qxc7 {[%clk 0:02:09.3]}
18. Nxd5 {[%clk 0:01:55.7]} 18... Qd8 {[%clk 0:01:44.4]} 19. Nxf6+ {[%clk
0:01:55.8]} 19... Qxf6 {[%clk 0:01:44.6]} 20. Qxa5 {[%clk 0:01:56.3]} 20... Bxf3
{[%clk 0:01:34.4]} 21. Bxf3 {[%clk 0:01:56.1]} 21... Qxh4 {[%clk 0:01:34.4]} 22.
Bxb7 {[%clk 0:01:54]} 22... Rab8 {[%clk 0:01:34]} 23. Qxa6 {[%clk 0:01:53]}
23... Re7 {[%clk 0:01:28.9]} 24. g3 {[%clk 0:01:42.3]} 24... Qf6 {[%clk
0:01:25.3]} 25. Be4 {[%clk 0:01:38.4]} 25... Rxb2 {[%clk 0:01:24.1]} 26. Rc2
{[%clk 0:01:38.7]} 26... Rxc2 {[%clk 0:01:18.2]} 27. Bxc2 {[%clk 0:01:38.6]}
27... Qf3 {[%clk 0:01:18.2]} 28. Bb3 {[%clk 0:01:30.3]} 28... h5 {[%clk
0:01:12.1]} 29. Qf1 {[%clk 0:01:01.6]} 29... h4 {[%clk 0:01:09.3]} 30. Qg2
{[%clk 0:00:52.7]} 30... Qxg2+ {[%clk 0:00:49.7]} 31. Kxg2 {[%clk 0:00:52.4]}
31... hxg3 {[%clk 0:00:50.6]} 32. Kxg3 {[%clk 0:00:52.6]} 32... Rc7 {[%clk
0:00:50.2]} 33. Kf3 {[%clk 0:00:50.8]} 33... Kg7 {[%clk 0:00:48.8]} 34. a4
{[%clk 0:00:45.1]} 34... Rc3 {[%clk 0:00:47.1]} 35. Rb1 {[%clk 0:00:44.6]} 35...
Rc7 {[%clk 0:00:43.9]} 36. a5 {[%clk 0:00:41.7]} 36... Bb4 {[%clk 0:00:31.8]}
37. a6 {[%clk 0:00:40.3]} 37... Ba5 {[%clk 0:00:32.4]} 38. Bd1 {[%clk
0:00:36.6]} 38... Kf6 {[%clk 0:00:26.8]} 39. Rb5 {[%clk 0:00:31.6]} 39... Bc3
{[%clk 0:00:18.6]} 40. Rb7 {[%clk 0:00:28.9]} 40... Rc6 {[%clk 0:00:16.3]} 41.
Be2 {[%clk 0:00:27.8]} 1-0

[Event "*** Titled Tuesday Blitz"]
[Site "Chess.com"]
[Date "2020.04.14"]
[Round "5"]
[White "DivyaDeshmukh23"]
[Black "Halvard"]
[Result "1-0"]
[WhiteElo "2490"]
[BlackElo "2104"]
[TimeControl "180+1"]
[EndTime "10:51:02 PDT"]
[Termination "DivyaDeshmukh23 won on time"]

1. e4 {[%clk 0:03:00.9]} 1... c5 {[%clk 0:02:59.4]} 2. Nf3 {[%clk 0:03:00.7]}
2... d6 {[%clk 0:02:59.7]} 3. d4 {[%clk 0:03:00.2]} 3... Nf6 {[%clk 0:02:59.8]}
4. Nc3 {[%clk 0:02:59.7]} 4... cxd4 {[%clk 0:02:59.8]} 5. Nxd4 {[%clk
0:02:59.1]} 5... a6 {[%clk 0:03:00.4]} 6. Bg5 {[%clk 0:02:57.8]} 6... Nbd7
{[%clk 0:02:59.7]} 7. f4 {[%clk 0:02:54.9]} 7... Qc7 {[%clk 0:02:59.8]} 8. Qf3
{[%clk 0:02:52.8]} 8... h6 {[%clk 0:02:59.8]} 9. Bh4 {[%clk 0:02:50.5]} 9... g5
{[%clk 0:02:59.3]} 10. fxg5 {[%clk 0:02:41.2]} 10... hxg5 {[%clk 0:03:00.2]} 11.
Bg3 {[%clk 0:02:32.7]} 11... g4 {[%clk 0:02:51.9]} 12. Qf2 {[%clk 0:02:24]}
12... Bh6 {[%clk 0:02:43.1]} 13. Bd3 {[%clk 0:02:08.2]} 13... Qb6 {[%clk
0:02:08.1]} 14. Nb3 {[%clk 0:02:01.5]} 14... Be3 {[%clk 0:02:04.7]} 15. Qe2
{[%clk 0:01:48.9]} 15... Ne5 {[%clk 0:01:54.4]} 16. Bf2 {[%clk 0:01:21.6]} 16...
Bxf2+ {[%clk 0:01:27.3]} 17. Qxf2 {[%clk 0:01:22.5]} 17... Qc7 {[%clk
0:01:10.8]} 18. O-O-O {[%clk 0:01:17.3]} 18... Be6 {[%clk 0:01:09.9]} 19. Nd4
{[%clk 0:01:10.3]} 19... O-O-O {[%clk 0:01:05.2]} 20. Nxe6 {[%clk 0:01:01.4]}
20... fxe6 {[%clk 0:01:06.1]} 21. Qa7 {[%clk 0:01:00]} 21... Qb8 {[%clk
0:01:06]} 22. Qb6 {[%clk 0:00:57.9]} 22... Qc7 {[%clk 0:00:59.7]} 23. Qb3 {[%clk
0:00:57]} 23... Qd7 {[%clk 0:00:53.2]} 24. Na4 {[%clk 0:00:49.1]} 24... Nxd3+
{[%clk 0:00:39.1]} 25. Rxd3 {[%clk 0:00:46]} 25... Kb8 {[%clk 0:00:37.6]} 26.
Nc5 {[%clk 0:00:43.8]} 26... Qc6 {[%clk 0:00:29]} 27. Nxe6 {[%clk 0:00:40.1]}
27... Rc8 {[%clk 0:00:29.2]} 28. Re1 {[%clk 0:00:24.8]} 28... Nxe4 {[%clk
0:00:18.5]} 29. Nd4 {[%clk 0:00:24.7]} 29... Qc5 {[%clk 0:00:09.3]} 30. Rxe4
{[%clk 0:00:24]} 30... Rxh2 {[%clk 0:00:08.4]} 31. Re1 {[%clk 0:00:18.6]} 31...
e5 {[%clk 0:00:07]} 32. Ne6 {[%clk 0:00:16.8]} 32... Qf2 {[%clk 0:00:04.8]} 33.
Red1 {[%clk 0:00:16.4]} 33... Rxg2 {[%clk 0:00:04.3]} 34. R3d2 {[%clk
0:00:16.4]} 1-0

[Event "*** Titled Tuesday Blitz"]
[Site "Chess.com"]
[Date "2020.04.14"]
[Round "5"]
[White "GMBenjaminBok"]
[Black "adiosabu"]
[Result "0-1"]
[WhiteElo "2871"]
[BlackElo "2559"]
[TimeControl "180+1"]
[EndTime "10:51:05 PDT"]
[Termination "adiosabu won on time"]

1. c4 {[%clk 0:03:00.9]} 1... e5 {[%clk 0:02:45.8]} 2. g3 {[%clk 0:03:00.9]}
2... Nf6 {[%clk 0:02:42.3]} 3. Bg2 {[%clk 0:03:01.3]} 3... Be7 {[%clk
0:02:41.8]} 4. Nc3 {[%clk 0:03:00.8]} 4... O-O {[%clk 0:02:41.4]} 5. Nf3 {[%clk
0:03:00.8]} 5... d6 {[%clk 0:02:41.4]} 6. d4 {[%clk 0:02:58.4]} 6... Nbd7 {[%clk
0:02:40.8]} 7. O-O {[%clk 0:02:57.4]} 7... c6 {[%clk 0:02:41.3]} 8. b3 {[%clk
0:02:55.8]} 8... Qc7 {[%clk 0:02:40.5]} 9. Bb2 {[%clk 0:02:54.8]} 9... e4 {[%clk
0:02:27.5]} 10. Nd2 {[%clk 0:02:52.2]} 10... d5 {[%clk 0:02:27.4]} 11. Rc1
{[%clk 0:02:51]} 11... Qa5 {[%clk 0:02:21.9]} 12. a3 {[%clk 0:02:44.8]} 12...
Re8 {[%clk 0:02:09.5]} 13. b4 {[%clk 0:02:44.5]} 13... Qb6 {[%clk 0:02:03.2]}
14. Qb3 {[%clk 0:02:42.4]} 14... Qxd4 {[%clk 0:01:37.1]} 15. Ncxe4 {[%clk
0:02:19.9]} 15... Qb6 {[%clk 0:01:36.4]} 16. Nxf6+ {[%clk 0:02:16.4]} 16... Nxf6
{[%clk 0:01:34.7]} 17. Bxf6 {[%clk 0:02:09.7]} 17... Bxf6 {[%clk 0:01:34.2]} 18.
cxd5 {[%clk 0:02:10.1]} 18... Rxe2 {[%clk 0:00:51.1]} 19. Nc4 {[%clk 0:01:52]}
19... Qd8 {[%clk 0:00:42.8]} 20. dxc6 {[%clk 0:01:32.6]} 20... bxc6 {[%clk
0:00:42.5]} 21. Na5 {[%clk 0:01:02.8]} 21... Be6 {[%clk 0:00:36.4]} 22. Qf3
{[%clk 0:01:02.5]} 22... Qd2 {[%clk 0:00:36.2]} 23. Nxc6 {[%clk 0:01:00.3]}
23... Re8 {[%clk 0:00:34.8]} 24. Rfd1 {[%clk 0:00:46.5]} 24... Qb2 {[%clk
0:00:31.6]} 25. Bf1 {[%clk 0:00:34.9]} 25... Rd2 {[%clk 0:00:28.6]} 26. Rxd2
{[%clk 0:00:28.2]} 26... Qxd2 {[%clk 0:00:28.2]} 27. Rd1 {[%clk 0:00:27.3]}
27... Qa2 {[%clk 0:00:16.9]} 28. Nxa7 {[%clk 0:00:15.5]} 28... h5 {[%clk
0:00:16.8]} 29. Qxh5 {[%clk 0:00:06.3]} 29... Qxa3 {[%clk 0:00:15.3]} 30. Nc6
{[%clk 0:00:05.9]} 30... Qa4 {[%clk 0:00:14.2]} 31. Qf3 {[%clk 0:00:04.3]} 31...
Bb3 {[%clk 0:00:11.4]} 32. Rc1 {[%clk 0:00:02]} 32... Be6 {[%clk 0:00:10.5]} 33.
b5 {[%clk 0:00:02.2]} 33... Qa2 {[%clk 0:00:07.6]} 34. b6 {[%clk 0:00:01.9]}
34... Qb2 {[%clk 0:00:07.8]} 0-1

[Event "*** Titled Tuesday Blitz"]
[Site "Chess.com"]
[Date "2020.04.14"]
[Round "5"]
[White "GigaQuparadze"]
[Black "BAS8892"]
[Result "1-0"]
[WhiteElo "2913"]
[BlackElo "2652"]
[TimeControl "180+1"]
[EndTime "10:51:05 PDT"]
[Termination "GigaQuparadze won by resignation"]

1. e4 {[%clk 0:03:00.9]} 1... c6 {[%clk 0:02:59.6]} 2. d4 {[%clk 0:03:00.2]}
2... d5 {[%clk 0:02:59.4]} 3. Nc3 {[%clk 0:03:00.1]} 3... dxe4 {[%clk
0:02:59.4]} 4. Nxe4 {[%clk 0:03:01]} 4... Bf5 {[%clk 0:02:59.7]} 5. Ng3 {[%clk
0:03:01.2]} 5... Bg6 {[%clk 0:02:59.8]} 6. h4 {[%clk 0:03:01.7]} 6... h6 {[%clk
0:02:59.6]} 7. Nf3 {[%clk 0:03:02.3]} 7... Nd7 {[%clk 0:02:58.8]} 8. h5 {[%clk
0:03:02.7]} 8... Bh7 {[%clk 0:02:58.8]} 9. Bd3 {[%clk 0:03:03.2]} 9... Bxd3
{[%clk 0:02:58.7]} 10. Qxd3 {[%clk 0:03:04.1]} 10... e6 {[%clk 0:02:58.8]} 11.
Bf4 {[%clk 0:03:03.8]} 11... Qa5+ {[%clk 0:02:57.9]} 12. Bd2 {[%clk 0:03:03.8]}
12... Qc7 {[%clk 0:02:57.8]} 13. O-O-O {[%clk 0:03:03.1]} 13... Ngf6 {[%clk
0:02:58.2]} 14. Ne4 {[%clk 0:03:03.3]} 14... O-O-O {[%clk 0:02:58.1]} 15. g3
{[%clk 0:03:03]} 15... Nxe4 {[%clk 0:02:58.1]} 16. Qxe4 {[%clk 0:03:03.9]} 16...
Bd6 {[%clk 0:02:58.3]} 17. c4 {[%clk 0:03:03.6]} 17... c5 {[%clk 0:02:57.4]} 18.
d5 {[%clk 0:03:03.3]} 18... Nf6 {[%clk 0:02:56.5]} 19. Qc2 {[%clk 0:03:03.3]}
19... exd5 {[%clk 0:02:56.5]} 20. cxd5 {[%clk 0:03:04.2]} 20... Qd7 {[%clk
0:02:56.2]} 21. Bc3 {[%clk 0:03:03.9]} 21... Rhe8 {[%clk 0:02:54]} 22. Bxf6
{[%clk 0:03:02.2]} 22... gxf6 {[%clk 0:02:53.8]} 23. Nh4 {[%clk 0:02:55.9]}
23... Re5 {[%clk 0:02:52.6]} 24. f4 {[%clk 0:02:54.4]} 24... Rxh5 {[%clk
0:02:52]} 25. Qe2 {[%clk 0:02:39.9]} 25... Rxd5 {[%clk 0:02:51.1]} 26. Rxd5
{[%clk 0:02:39.1]} 26... Bxf4+ {[%clk 0:02:51.5]} 27. gxf4 {[%clk 0:02:39.1]}
27... Qxd5 {[%clk 0:02:51.7]} 28. Rh3 {[%clk 0:02:36.2]} 28... Qxa2 {[%clk
0:02:48.8]} 29. Ra3 {[%clk 0:02:35.8]} 29... Qd5 {[%clk 0:02:45.2]} 30. Nf3
{[%clk 0:02:35.8]} 30... Kb8 {[%clk 0:02:35.6]} 31. Nd2 {[%clk 0:02:34.7]} 31...
Qd4 {[%clk 0:02:25.6]} 32. Qe3 {[%clk 0:02:31.6]} 32... Qd5 {[%clk 0:02:17.1]}
33. Rc3 {[%clk 0:02:27]} 33... b6 {[%clk 0:02:08.5]} 34. Qe2 {[%clk 0:02:25.8]}
34... Qd4 {[%clk 0:01:59]} 35. Rc4 {[%clk 0:02:21.1]} 35... Qd5 {[%clk
0:01:57.3]} 36. Re4 {[%clk 0:02:19]} 36... h5 {[%clk 0:01:50.6]} 37. Re8 {[%clk
0:02:15.6]} 37... h4 {[%clk 0:01:37.9]} 38. Rxd8+ {[%clk 0:02:15]} 38... Qxd8
{[%clk 0:01:37.8]} 39. Qh5 {[%clk 0:02:09.3]} 39... Qd4 {[%clk 0:01:13]} 40.
Qxh4 {[%clk 0:02:04.6]} 40... c4 {[%clk 0:01:12.1]} 41. Qg3 {[%clk 0:02:04.2]}
41... Kb7 {[%clk 0:01:03.8]} 42. Qf3+ {[%clk 0:02:03.3]} 42... Kc7 {[%clk
0:00:59.8]} 43. f5 {[%clk 0:02:00.5]} 43... b5 {[%clk 0:00:56.5]} 44. Qh5 {[%clk
0:01:58.4]} 44... Qd5 {[%clk 0:00:46.4]} 45. Qh2+ {[%clk 0:01:53.1]} 45... Kb7
{[%clk 0:00:44.6]} 46. Qf4 {[%clk 0:01:48.9]} 46... Ka6 {[%clk 0:00:37.7]} 47.
Qe4 {[%clk 0:01:46.8]} 47... Qd6 {[%clk 0:00:36.1]} 48. Qe8 {[%clk 0:01:42.8]}
48... Qd5 {[%clk 0:00:31.6]} 49. Qc8+ {[%clk 0:01:40.8]} 49... Ka5 {[%clk
0:00:29.1]} 50. Qc7+ {[%clk 0:01:36.7]} 50... Ka6 {[%clk 0:00:23]} 51. Qf4
{[%clk 0:01:35.8]} 51... Ka5 {[%clk 0:00:21.1]} 52. Qe3 {[%clk 0:01:34.8]} 52...
Ka6 {[%clk 0:00:20.4]} 53. Qe4 {[%clk 0:01:29]} 53... Qd6 {[%clk 0:00:19.9]} 54.
Kc2 {[%clk 0:01:29.3]} 54... Ka5 {[%clk 0:00:19.2]} 55. Nf3 {[%clk 0:01:29.3]}
55... a6 {[%clk 0:00:18.4]} 56. Nd4 {[%clk 0:01:27.3]} 56... Qh2+ {[%clk
0:00:17.4]} 57. Kb1 {[%clk 0:01:26.7]} 57... Qd6 {[%clk 0:00:17.9]} 58. Ka2
{[%clk 0:01:26.1]} 58... Kb6 {[%clk 0:00:17.2]} 59. Nc2 {[%clk 0:01:25.9]} 59...
a5 {[%clk 0:00:16.4]} 60. Ne3 {[%clk 0:01:25.6]} 60... a4 {[%clk 0:00:15.4]} 61.
Nd5+ {[%clk 0:01:25.2]} 61... Kc5 {[%clk 0:00:15.7]} 62. Nc3 {[%clk 0:01:24.1]}
62... Kb6 {[%clk 0:00:14.2]} 63. Qa8 {[%clk 0:01:23.1]} 63... Qc7 {[%clk
0:00:11.7]} 64. Nd5+ {[%clk 0:01:22.9]} 1-0

[Event "*** Titled Tuesday Blitz"]
[Site "Chess.com"]
[Date "2020.04.14"]
[Round "5"]
[White "krzyzan94"]
[Black "Nitzan_Steinberg"]
[Result "0-1"]
[WhiteElo "2701"]
[BlackElo "2906"]
[TimeControl "180+1"]
[EndTime "10:51:07 PDT"]
[Termination "Nitzan_Steinberg won on time"]

1. d4 {[%clk 0:03:00.9]} 1... d5 {[%clk 0:02:59.8]} 2. Bf4 {[%clk 0:03:00.3]}
2... c5 {[%clk 0:02:58.4]} 3. e3 {[%clk 0:02:58.2]} 3... Nc6 {[%clk 0:02:58]} 4.
Nf3 {[%clk 0:02:54.9]} 4... Bg4 {[%clk 0:02:56.6]} 5. Nbd2 {[%clk 0:02:48.5]}
5... e6 {[%clk 0:02:53.8]} 6. c3 {[%clk 0:02:43.2]} 6... Bd6 {[%clk 0:02:45]} 7.
dxc5 {[%clk 0:02:28.9]} 7... Bxc5 {[%clk 0:02:40.7]} 8. Qb3 {[%clk 0:02:29]}
8... Bb6 {[%clk 0:02:21.4]} 9. a4 {[%clk 0:02:16.4]} 9... Nge7 {[%clk
0:02:14.2]} 10. a5 {[%clk 0:01:52.7]} 10... Nxa5 {[%clk 0:02:05.9]} 11. Qa4+
{[%clk 0:01:41.6]} 11... Nac6 {[%clk 0:01:59.7]} 12. Ne5 {[%clk 0:01:38.8]}
12... Bf5 {[%clk 0:01:53.6]} 13. g4 {[%clk 0:01:33]} 13... Bg6 {[%clk
0:01:52.2]} 14. h4 {[%clk 0:01:33.2]} 14... h5 {[%clk 0:01:44.4]} 15. Bb5 {[%clk
0:01:18.4]} 15... Rc8 {[%clk 0:01:43.4]} 16. gxh5 {[%clk 0:01:14.7]} 16... Bxh5
{[%clk 0:01:38.6]} 17. Rg1 {[%clk 0:01:11.3]} 17... O-O {[%clk 0:01:19.7]} 18.
Nxc6 {[%clk 0:01:06.6]} 18... bxc6 {[%clk 0:01:10.8]} 19. Ba6 {[%clk 0:01:06.4]}
19... Nf5 {[%clk 0:00:58.4]} 20. Bxc8 {[%clk 0:01:02.2]} 20... Qxc8 {[%clk
0:00:59.3]} 21. Rg5 {[%clk 0:00:50.7]} 21... Bg6 {[%clk 0:00:54.6]} 22. h5
{[%clk 0:00:50.9]} 22... Bh7 {[%clk 0:00:54.5]} 23. O-O-O {[%clk 0:00:46.5]}
23... f6 {[%clk 0:00:48.4]} 24. Rg4 {[%clk 0:00:29.1]} 24... e5 {[%clk
0:00:46.9]} 25. Bh2 {[%clk 0:00:29.3]} 25... d4 {[%clk 0:00:43.2]} 26. Rdg1
{[%clk 0:00:15.1]} 26... dxe3 {[%clk 0:00:39.4]} 27. fxe3 {[%clk 0:00:16]} 27...
Bxe3 {[%clk 0:00:38.8]} 28. R1g2 {[%clk 0:00:16.4]} 28... Rd8 {[%clk 0:00:32.6]}
29. Bg1 {[%clk 0:00:15.6]} 29... Bh6 {[%clk 0:00:29.9]} 30. Qxa7 {[%clk
0:00:12.5]} 30... Qe6 {[%clk 0:00:22.1]} 31. Qc7 {[%clk 0:00:07.5]} 31... Rc8
{[%clk 0:00:20.9]} 32. Qb7 {[%clk 0:00:06.9]} 32... Re8 {[%clk 0:00:19.7]} 33.
Bc5 {[%clk 0:00:04.2]} 33... e4 {[%clk 0:00:19.2]} 34. Kb1 {[%clk 0:00:02]}
34... e3 {[%clk 0:00:19]} 35. Ne4 {[%clk 0:00:02.9]} 35... Kh8 {[%clk
0:00:14.2]} 36. Re2 {[%clk 0:00:02.4]} 36... Nd6 {[%clk 0:00:13.2]} 0-1